bitfinex-derivatives/quotes_ETHF0:USTF0_20250309
["timestamp","ask_amount","ask_price","bid_price","bid_amount"]
[1741529387156,3.2078,2112.5,2112.1,3.2078]
[1741529387368,3.2078,2112.5,2112.3,0.94697]
[1741529387762,3.2078,2112.5,2112.4,0.94696]
[1741529388162,3.2078,2112.5,2112.2,9.14950463]
[1741529388467,3.2078,2112.5,2112.4,0.94696]
[1741529389071,0.00710463,2112.7,2112.5,0.94687]
[1741529389264,0.00710463,2112.7,2112.5,0.94689]
[1741529389865,0.00710463,2112.7,2112.6,0.94687]
[1741529390572,3.2078,2113.3,2112.6,2.78]
[1741529390772,3.2078,2113.3,2112.7,0.9468]
[1741529390974,3.2078,2113.3,2112.6,2.78]
[1741529390975,0.94672,2113.0,2112.6,2.78]
[1741529391165,0.94671,2113.0,2112.6,3.72686]
[1741529391470,0.94671,2113.0,2112.4,2.78]
[1741529391471,3.2078,2113.0,2112.4,2.78]
[1741529391675,3.2078,2112.7,2112.4,2.78]
[1741529391868,3.2078,2112.7,2112.4,3.72694]
[1741529392070,3.2078,2112.7,2112.5,0.94691]
[1741529392271,3.2078,2112.7,2112.2,0.00710463]
[1741529392661,3.2078,2112.7,2112.2,0.95413463]
[1741529393070,3.2078,2112.7,2112.2,0.00710463]
[1741529393467,3.2078,2112.4,2112.2,0.95413463]
[1741529393662,3.2078,2112.4,2112.2,0.00710463]
[1741529393968,0.94716,2112.0,2111.7,0.94724]
[1741529394171,0.94705,2112.2,2111.8,0.94719]
[1741529394376,6.318,2112.3,2111.7,0.94724]
[1741529394670,0.94714,2112.0,2111.7,0.94724]
[1741529394870,0.94714,2112.0,2111.6,3.2078]
[1741529395175,0.94713,2112.1,2111.6,3.21490463]
[1741529395379,0.94714,2112.0,2111.8,0.94722]
[1741529395562,0.94714,2112.0,2111.7,0.94725]
[1741529395767,0.94714,2112.0,2111.6,3.21490463]
[1741529395768,0.94714,2112.0,2111.6,4.16219463]
[1741529395972,0.94718,2111.9,2111.6,3.21490463]
[1741529397079,6.2716,2112.1,2111.6,3.21490463]
[1741529397275,0.94716,2112.0,2111.6,3.21490463]
[1741529397470,4.8942,2112.2,2111.6,3.21490463]
[1741529397675,6.318,2112.3,2111.6,3.21490463]
[1741529397870,6.2716,2112.6,2112.0,3.2078]
[1741529398078,3.2078,2112.7,2112.1,9.69237]
[1741529398276,3.2078,2112.7,2112.1,8.7453]
[1741529398479,3.2078,2112.4,2112.1,43.578]
[1741529398679,0.94705,2112.2,2112.1,43.578]
[1741529398871,0.94705,2112.2,2111.8,3.7252]
[1741529399081,0.94705,2112.2,2111.8,2.778]
[1741529399481,3.2078,2112.4,2111.9,40.8]
[1741529399682,0.947,2112.3,2111.9,41.74718]
[1741529399982,4.15479,2112.4,2112.0,0.94712]
[1741529400176,3.2078,2112.4,2111.7,9.1751]
[1741529400375,0.94707,2112.2,2111.9,0.94718]
[1741529400575,0.94707,2112.2,2111.7,11.9531]
[1741529400576,3.2078,2112.4,2111.7,11.9531]
[1741529400890,0.94711,2112.1,2111.7,12.90035]
[1741529401276,0.94721,2111.9,2111.7,5.9673]
[1741529401473,4.15486,2112.2,2111.8,0.94719]
[1741529401677,0.9471,2112.1,2111.7,4.15505]
[1741529402282,4.15487,2112.2,2111.8,0.94721]
[1741529402577,4.15485,2112.2,2111.8,0.94721]
[1741529402785,0.94709,2112.1,2111.7,6.93205]
[1741529403086,0.94715,2112.0,2111.7,5.9848]
[1741529403273,3.2078,2112.2,2111.7,5.9848]
[1741529403579,4.15473,2112.5,2111.7,5.9848]
[1741529403784,3.2078,2112.5,2111.7,5.9848]
[1741529404088,3.2078,2112.5,2112.0,3.2078]
[1741529404280,3.2078,2112.5,2112.1,2.777]
[1741529404482,0.94696,2112.4,2112.1,2.777]
[1741529404685,3.2078,2112.5,2112.1,2.777]
[1741529404877,17.3096,2112.8,2111.6,46.99990463]
[1741529404878,0.94723,2111.8,2111.6,46.99990463]
[1741529405076,3.2078,2112.2,2111.6,3.21490463]
[1741529405281,0.94727,2111.7,2111.6,3.21490463]
[1741529405581,0.94727,2111.7,2111.6,0.00710463]
[1741529405980,3.2078,2111.9,2110.9,4.15539]
[1741529406182,3.2078,2111.6,2110.8,6.2549]
[1741529406488,18.47886,2111.5,2111.2,0.94748]
[1741529406690,17.5315,2111.5,2111.3,0.94743]
[1741529406889,18.47886,2111.5,2111.2,0.94747]
[1741529407089,3.2078,2111.7,2111.0,3.2078]
[1741529407285,0.00710463,2111.6,2111.1,0.0047364]
[1741529407677,0.00710463,2111.6,2111.1,0.9522564]
[1741529407879,0.94749,2111.2,2111.1,0.0047364]
[1741529409188,3.2078,2111.4,2111.1,0.0047364]
[1741529409390,3.2078,2111.4,2111.3,0.94745]
[1741529409696,0.94741,2111.4,2111.1,0.0047364]
[1741529410188,3.2078,2111.5,2111.1,0.0047364]
[1741529410792,3.2078,2111.5,2111.1,3.2125364]
[1741529410992,3.2078,2111.5,2111.3,0.94742]
[1741529411190,3.2078,2111.5,2111.1,3.2125364]
[1741529411392,3.2078,2111.5,2111.2,0.94747]
[1741529411686,0.00710463,2111.6,2111.3,0.94744]
[1741529412088,0.00710463,2111.6,2111.1,3.2125364]
[1741529412293,0.00710463,2111.6,2111.1,0.0047364]
[1741529412593,0.00710463,2111.6,2111.2,0.94748]
[1741529412799,0.95444463,2111.6,2111.2,0.94748]
[1741529412998,0.95444463,2111.6,2111.1,0.0047364]
[1741529413299,0.94738,2111.5,2111.1,0.9522364]
[1741529413498,3.2078,2111.5,2111.1,0.0047364]
[1741529413695,0.94757,2111.1,2110.6,2.776]
[1741529413999,0.94763,2111.0,2110.7,0.9477]
[1741529414212,0.94763,2111.0,2110.8,40.8]
[1741529414609,0.94763,2111.0,2110.7,0.9477]
[1741529415009,0.94764,2110.9,2110.7,40.8]
[1741529415200,0.94762,2111.0,2110.7,40.8]
[1741529415611,3.2078,2111.2,2110.7,40.8]
[1741529415612,0.94764,2110.9,2110.7,40.8]
[1741529415912,0.94776,2110.7,2110.5,22.5258]
[1741529416115,3.2078,2110.9,2110.5,3.2078]
[1741529416320,17.7416,2110.8,2110.2,3.2078]
[1741529416817,18.6893,2110.8,2110.5,0.94778]
[1741529417112,3.2078,2110.9,2110.2,3.2078]
[1741529417313,3.2078,2110.9,2110.6,0.94774]
[1741529417514,3.2078,2110.9,2110.2,10.9612]
[1741529418112,0.9477,2110.8,2110.4,0.94783]
[1741529418313,3.2078,2110.9,2110.2,10.9612]
[1741529418518,0.94785,2110.5,2110.2,6.1928]
[1741529418722,12.5744,2110.8,2110.2,6.1928]
[1741529419017,0.94776,2110.7,2110.2,7.14074]
[1741529419213,0.94775,2110.7,2110.2,6.1928]
[1741529419421,0.94775,2110.7,2110.3,0.94787]
[1741529419612,12.5744,2110.8,2110.2,6.1928]
[1741529419813,0.94784,2110.5,2110.2,6.1928]
[1741529420013,12.5744,2110.8,2110.2,3.2078]
[1741529421016,4.15543,2110.9,2110.5,0.94779]
[1741529421214,18.44372,2111.2,2110.8,0.94767]
[1741529421612,18.44372,2111.2,2110.6,9.7428]
[1741529421613,0.94754,2111.1,2110.7,0.94769]
[1741529421821,3.2078,2111.3,2111.0,0.94757]
[1741529422020,3.2078,2111.3,2110.8,40.8]
[1741529422218,0.94753,2111.2,2110.8,40.8]
[1741529422417,3.2078,2111.3,2110.9,0.94759]
[1741529422727,4.15527,2111.3,2110.9,0.9476]
[1741529423218,3.2078,2111.3,2110.9,2.775]
[1741529423525,3.2078,2111.3,2111.0,0.94758]
[1741529423716,0.94741,2111.4,2111.0,0.94758]
[1741529424117,17.5213,2111.5,2110.9,5.9828]
[1741529424519,0.94752,2111.2,2110.9,5.9828]
[1741529424725,3.2078,2111.3,2110.9,5.9828]
[1741529424924,17.5213,2111.5,2110.9,6.93039]
[1741529425328,0.94743,2111.4,2111.0,0.94758]
[1741529425626,17.5213,2111.5,2110.9,5.9828]
[1741529425926,0.94747,2111.3,2110.9,6.93042]
[1741529426123,0.94747,2111.3,2110.9,6.93041]
[1741529426424,0.94752,2111.2,2110.9,5.9828]
[1741529426719,3.2078,2111.4,2110.9,5.9828]
[1741529426920,0.94756,2111.1,2110.9,5.9828]
[1741529427120,0.94757,2111.1,2110.9,5.9828]
[1741529427319,3.2078,2111.4,2110.9,5.9828]
[1741529427624,3.2078,2111.4,2110.9,3.2078]
[1741529427823,0.94758,2111.0,2110.9,3.2078]
[1741529428626,0.94775,2110.7,2110.5,19.328]
[1741529428932,3.2078,2111.0,2110.5,19.328]
[1741529429131,0.94763,2110.9,2110.6,0.94773]
[1741529429327,3.2078,2111.0,2110.5,60.128]
[1741529429625,0.94775,2110.7,2110.5,19.328]
[1741529429927,0.94776,2110.6,2110.5,19.328]
[1741529430127,0.94781,2110.5,2110.4,3.2078]
[1741529430629,0.94772,2110.7,2110.4,3.2078]
[1741529430822,17.6414,2110.9,2110.4,3.2078]
[1741529431022,0.94781,2110.5,2110.4,3.2078]
[1741529431624,0.94779,2110.6,2110.4,3.2078]
[1741529431831,0.94781,2110.5,2110.4,3.2078]
[1741529432432,0.9478,2110.6,2110.4,3.2078]
[1741529432730,11.2302,2110.9,2110.4,3.2078]
[1741529432918,4.8675,2110.9,2110.4,3.2078]
[1741529433124,0.9477,2110.8,2110.5,7.34271]
[1741529433327,0.9477,2110.8,2110.6,2.774]
[1741529433728,0.94772,2110.7,2110.6,2.774]
[1741529434124,4.8675,2110.9,2110.6,2.774]
[1741529434623,10.68257,2111.3,2110.9,0.94761]
[1741529434824,4.9007,2111.5,2111.0,2.773]
[1741529435130,0.94763,2110.9,2110.8,5.9808]
[1741529435424,3.2078,2111.1,2110.5,6.3949]
[1741529435628,0.94776,2110.6,2110.5,6.3949]
[1741529435932,3.2078,2111.1,2110.5,6.3949]
[1741529436124,0.94776,2110.6,2110.5,6.3949]
[1741529436425,0.9479,2110.3,2110.2,40.8]
[1741529436633,0.94799,2110.1,2109.8,25.5976]
[1741529436827,3.2078,2110.4,2109.8,25.5976]
[1741529437028,0.948,2110.1,2109.8,66.3976]
[1741529437225,0.94808,2109.9,2109.8,19.328]
[1741529437430,0.9482,2109.7,2109.4,9.4774]
[1741529437627,0.94821,2109.7,2109.4,9.4774]
[1741529437930,3.2078,2110.0,2109.4,9.4774]
[1741529438128,0.94826,2109.5,2109.4,9.4774]
[1741529438329,0.94824,2109.6,2109.4,3.2078]
[1741529438534,0.94826,2109.5,2109.4,3.2078]
[1741529438827,3.2078,2109.7,2109.4,3.2078]
[1741529439030,0.94826,2109.5,2109.4,3.2078]
[1741529439530,0.94838,2109.3,2109.0,19.329]
[1741529439831,0.94829,2109.5,2109.0,60.129]
[1741529440130,0.00710463,2109.4,2109.2,0.94836]
[1741529440320,0.00710463,2109.4,2109.0,63.3368]
[1741529440524,0.00710463,2109.4,2109.1,0.94844]
[1741529440724,0.00710463,2109.4,2109.0,63.3368]
[1741529440925,3.21490463,2109.4,2109.0,63.3368]
[1741529441434,0.94835,2109.3,2109.0,63.3368]
[1741529441735,3.21490463,2109.4,2109.0,63.3368]
[1741529441928,0.00710463,2109.4,2109.2,0.94837]
[1741529442234,0.00710463,2109.4,2109.0,63.3368]
[1741529442727,0.00710463,2109.4,2109.1,0.94842]
[1741529442922,0.00710463,2109.4,2109.0,63.3368]
[1741529443235,0.95544463,2109.4,2109.0,64.28526]
[1741529443428,0.00710463,2109.4,2109.0,63.3368]
[1741529443632,0.00710463,2109.4,2109.0,64.28526]
[1741529443932,0.94835,2109.3,2109.0,63.3368]
[1741529444131,0.94837,2109.3,2109.0,63.3368]
[1741529444434,0.95543463,2109.4,2109.0,60.129]
[1741529445034,0.95543463,2109.4,2109.0,61.07748]
[1741529445627,0.9484,2109.2,2109.0,60.129]
[1741529445828,0.9484,2109.2,2108.2,22.5458]
[1741529445829,3.2078,2109.2,2108.2,22.5458]
[1741529446029,18.0141,2109.3,2108.8,3.2078]
[1741529446232,18.96247,2109.3,2108.8,4.15635]
[1741529446433,0.94841,2109.2,2108.7,0.9486]
[1741529446828,0.94841,2109.2,2108.5,4.15649]
[1741529446829,0.94851,2109.0,2108.5,4.15649]
[1741529447034,18.0141,2109.3,2108.5,3.2078]
[1741529447329,22.17028,2109.3,2108.7,0.94859]
[1741529447530,21.2219,2109.3,2108.8,5.9897]
[1741529447829,21.2219,2109.3,2108.5,3.2078]
[1741529448029,0.94855,2108.9,2108.5,3.2078]
[1741529448225,3.2078,2108.7,2107.8,0.08252694]
[1741529448532,3.2078,2108.3,2107.7,3.2078]
[1741529449133,0.95595463,2108.2,2107.7,5.9798]
[1741529449338,0.00710463,2108.2,2107.7,3.2078]
[1741529449835,0.00710463,2108.2,2107.5,6.4726]
[1741529450030,0.00710463,2108.2,2108.0,0.94889]
[1741529450231,0.00710463,2108.2,2108.1,0.94889]
[1741529450531,3.2078,2109.0,2108.1,6.4726]
[1741529450734,3.2078,2109.0,2108.3,3.2078]
[1741529450935,3.2078,2109.3,2108.7,0.94861]
[1741529451129,0.46703239,2109.0,2108.4,2.772]
[1741529451531,3.67483239,2109.0,2108.2,44.52082]
[1741529451734,0.94867,2108.6,2108.5,0.00710463]
[1741529451939,0.94881,2108.3,2107.7,2.772]
[1741529452140,0.46703239,2108.0,2107.7,2.772]
[1741529453235,1.41603239,2107.9,2107.5,6.5326]
[1741529453431,0.46703239,2107.9,2107.5,6.5326]
[1741529453633,0.46703239,2107.9,2107.3,6.1928]
[1741529453936,0.46703239,2107.9,2107.8,0.94902]
[1741529454332,6.2692,2108.5,2108.2,0.94884]
[1741529454535,0.00710463,2108.9,2108.3,40.8]
[1741529454736,0.00710463,2108.9,2108.5,4.15649]
[1741529454938,0.00710463,2108.9,2108.3,46.754]
[1741529454939,0.95567463,2108.9,2108.4,2.772]
[1741529455140,0.94862,2108.7,2108.3,46.754]
[1741529455443,0.00710463,2108.9,2108.4,0.94872]
[1741529455645,0.00710463,2108.9,2108.3,46.754]
[1741529455834,0.00710463,2108.9,2108.3,47.70278]
[1741529455835,0.95566463,2108.9,2108.3,47.70278]
[1741529456035,0.95566463,2108.9,2108.3,46.754]
[1741529456036,0.94864,2108.7,2108.3,46.754]
[1741529456242,0.00710463,2108.9,2107.7,0.4744]
[1741529456243,0.94879,2108.4,2107.7,0.94904]
[1741529456448,0.94878,2108.4,2107.8,5.954]
[1741529456842,15.1792,2108.6,2107.8,5.954]
[1741529457347,0.94891,2108.1,2107.6,3.2078]
[1741529457537,0.94896,2108.0,2107.6,3.2078]
[1741529457745,3.2078,2108.3,2107.6,3.2078]
[1741529457957,3.2078,2108.0,2107.4,6.2787]
[1741529458250,0.94909,2107.7,2107.4,6.2787]
[1741529458449,12.4273,2107.9,2107.4,6.2787]
[1741529458746,4.7841,2108.8,2107.6,3.2078]
[1741529458946,4.15645,2108.7,2107.7,3.2078]
[1741529459247,3.2078,2108.4,2107.7,3.2078]
[1741529459442,10.7639,2108.8,2108.0,3.2078]
[1741529459643,0.94862,2108.7,2108.1,6.2787]
[1741529459843,0.00710463,2108.6,2108.2,0.00710463]
[1741529460349,0.00710463,2108.6,2108.3,0.94877]
[1741529460541,0.00710463,2108.6,2108.2,0.00710463]
[1741529460938,0.00710463,2108.6,2108.3,4.15657]
[1741529461137,0.00710463,2108.6,2108.4,2.772]
[1741529461336,0.00710463,2108.6,2108.4,3.72073]
[1741529461537,0.00710463,2108.6,2108.4,2.772]
[1741529461749,0.00710463,2108.6,2108.3,2.772]
[1741529462542,0.00710463,2108.6,2108.4,0.94873]
[1741529462839,0.00710463,2108.6,2108.4,0.94874]
[1741529463040,8.0283,2109.4,2108.5,3.2078]
[1741529463237,0.94848,2109.0,2108.5,8.3894]
[1741529463442,8.0283,2109.4,2108.3,2.771]
[1741529463443,3.2078,2109.1,2108.3,2.771]
[1741529463754,4.15639,2108.8,2108.3,2.771]
[1741529463950,3.2078,2109.2,2108.5,3.2078]
[1741529464152,3.2078,2109.2,2108.3,5.756]
[1741529464451,12.8576,2109.3,2108.3,2.771]
[1741529464452,0.94871,2108.5,2108.3,2.771]
[1741529464746,0.00710463,2109.1,2108.2,0.00710463]
[1741529464747,0.94877,2108.4,2108.2,0.00710463]
[1741529464947,0.9488,2108.3,2108.2,0.00710463]
[1741529465251,4.1566,2108.3,2108.2,0.00710463]
[1741529465443,4.1566,2108.3,2107.6,19.348]
[1741529465444,7.2078,2108.3,2107.6,19.348]
[1741529465648,0.94895,2108.0,2107.6,19.348]
[1741529465847,3.2078,2108.3,2107.6,19.348]
[1741529465848,0.94891,2108.1,2107.6,19.348]
[1741529466052,0.94896,2108.0,2107.6,19.348]
[1741529466241,3.2078,2108.3,2107.6,19.348]
[1741529466650,0.94891,2108.1,2107.7,0.00710463]
[1741529467046,0.00710463,2108.2,2107.7,0.00710463]
[1741529467247,0.00710463,2108.2,2108.1,0.94889]
[1741529467444,0.00710463,2108.2,2107.9,3.2078]
[1741529468244,0.00710463,2108.2,2107.9,4.15676]
[1741529468445,4.15634,2108.9,2108.0,40.8]
[1741529468651,3.2078,2108.9,2108.0,44.0078]
[1741529468840,3.2078,2108.8,2108.0,40.8]
[1741529469044,3.2078,2108.8,2108.0,41.74892]
[1741529469354,3.2078,2108.8,2108.0,40.8]
[1741529469554,3.2078,2108.8,2108.1,2.771]
[1741529469754,0.00710463,2108.6,2108.2,3.2078]
[1741529470449,0.00710463,2108.6,2108.5,3.2078]
[1741529470849,0.00710463,2108.6,2108.5,5.9788]
[1741529471160,3.2078,2109.3,2108.5,9.9788]
[1741529471458,3.2078,2109.3,2108.5,5.9788]
[1741529471646,11.5617,2109.7,2109.1,3.2078]
[1741529471647,5.1245,2109.7,2109.1,3.2078]
[1741529471846,0.94803,2110.0,2109.5,0.94823]
[1741529472053,0.94803,2110.0,2108.7,24.70647]
[1741529472054,3.2078,2109.9,2109.3,5.9778]
[1741529472346,3.2078,2109.9,2109.5,0.00710463]
[1741529472654,3.2078,2109.9,2109.5,3.21490463]
[1741529472849,0.00710463,2110.0,2109.5,3.21490463]
[1741529473156,0.00710463,2110.0,2109.8,3.2078]
[1741529473359,0.00710463,2110.0,2109.8,2.77]
[1741529474356,0.95515463,2110.0,2109.8,2.77]
[1741529474551,0.00710463,2110.0,2109.8,2.77]
[1741529475054,0.94814,2109.8,2109.7,2.769]
[1741529475250,0.00710463,2110.0,2109.7,2.769]
[1741529475453,0.00710463,2110.0,2109.8,0.94811]
[1741529475656,0.00710463,2110.0,2109.9,4.15588]
[1741529476155,3.2078,2110.6,2109.9,26.5538]
[1741529476364,4.15559,2110.6,2110.2,3.2078]
[1741529476658,3.2078,2110.6,2110.3,2.769]
[1741529477260,0.00710463,2110.7,2110.3,2.769]
[1741529477553,0.00710463,2110.7,2110.4,0.94783]
[1741529477966,0.94776,2110.6,2110.3,2.769]
[1741529478164,0.95484463,2110.7,2110.3,2.769]
[1741529478459,0.00710463,2110.7,2110.3,5.9768]
[1741529478764,0.00710463,2110.7,2110.6,3.2078]
[1741529478963,0.94749,2111.2,2110.6,4.15556]
[1741529479259,5.949,2111.3,2110.9,3.2078]
[1741529479460,5.2091,2111.4,2110.9,4.15543]
[1741529479763,5.2091,2111.4,2110.9,3.2078]
[1741529479964,0.94746,2111.3,2110.8,47.0842]
[1741529480160,0.94757,2111.1,2110.9,0.00710463]
[1741529480460,5.21620463,2111.4,2110.9,0.00710463]
[1741529480657,0.94752,2111.2,2110.9,0.00710463]
[1741529481167,0.94755,2111.1,2110.9,0.00710463]
[1741529481357,5.21620463,2111.4,2110.9,0.00710463]
[1741529481762,5.21620463,2111.4,2110.9,41.75472463]
[1741529482256,5.21620463,2111.4,2110.9,0.95472463]
[1741529482459,6.16361463,2111.4,2110.9,3.21490463]
[1741529482664,0.00710463,2111.4,2111.0,0.94755]
[1741529482860,0.00710463,2111.4,2110.9,3.21490463]
[1741529483355,0.00710463,2111.4,2111.1,0.9475]
[1741529483662,0.00710463,2111.4,2111.1,3.7145]
[1741529483857,0.00710463,2111.4,2111.1,2.767]
[1741529484865,0.94752,2111.2,2110.9,3.21490463]
[1741529485063,0.00710463,2111.4,2110.9,3.21490463]
[1741529485761,0.94755,2111.1,2110.9,3.21490463]
[1741529485959,6.34260463,2111.4,2110.9,3.21490463]
[1741529486361,0.94758,2111.0,2110.9,0.00710463]
[1741529486768,4.94758,2111.0,2110.9,0.00710463]
[1741529486964,0.94781,2110.5,2110.1,4.15577]
[1741529487160,3.2078,2110.6,2110.0,6.5056]
[1741529487365,2.369,2111.0,2109.5,2.766]
[1741529487366,3.2078,2110.3,2109.5,2.766]
[1741529487663,3.2078,2110.3,2110.0,0.94803]
[1741529487864,12.5669,2110.5,2109.6,46.9928]
[1741529488066,12.5669,2110.5,2109.9,0.00710463]
[1741529488067,0.00710463,2110.4,2109.9,0.00710463]
[1741529488265,0.9479,2110.3,2109.9,0.00710463]
[1741529488465,4.1557,2110.3,2109.9,0.95518463]
[1741529488762,3.2078,2110.3,2109.9,0.00710463]
[1741529489072,0.94799,2110.1,2109.9,0.00710463]
[1741529489262,3.2078,2110.3,2109.9,0.00710463]
[1741529489463,0.94802,2110.1,2109.9,0.00710463]
[1741529490064,4.15583,2110.0,2109.9,0.00710463]
[1741529491067,3.2078,2110.0,2109.9,0.00710463]
[1741529491271,0.95497463,2110.4,2110.0,0.94803]
[1741529491467,4.15572,2110.3,2109.9,6.92896463]
[1741529491668,0.00710463,2110.4,2109.9,5.98090463]
[1741529491869,0.00710463,2110.4,2110.1,0.94797]
[1741529492172,0.94793,2110.3,2110.0,6.2946]
[1741529492362,0.00710463,2110.4,2110.0,6.2946]
[1741529492562,0.9479,2110.3,2110.0,6.2946]
[1741529492762,0.00710463,2110.4,2110.0,6.2946]
[1741529493167,0.94799,2110.1,2110.0,6.2946]
[1741529493370,0.94803,2110.0,2109.9,0.00710463]
[1741529493568,4.15583,2110.0,2109.9,0.00710463]
[1741529495069,0.94808,2109.9,2109.1,19.333]
[1741529495272,3.2078,2109.5,2109.1,19.333]
[1741529495967,13.8268,2109.9,2109.1,19.333]
[1741529495968,3.2078,2109.8,2109.1,19.333]
[1741529496170,3.2078,2109.8,2109.1,19.34010463]
[1741529496365,6.0377,2109.7,2109.1,19.34010463]
[1741529496566,6.9859,2109.7,2109.2,0.94838]
[1741529496776,6.0377,2109.7,2109.2,0.94838]
[1741529497076,6.0377,2109.7,2109.1,20.28852463]
[1741529497077,0.94825,2109.6,2109.1,20.28852463]
[1741529497271,6.9859,2109.7,2109.1,19.34010463]
[1741529497578,6.98589,2109.7,2109.1,19.34010463]
[1741529497776,0.94826,2109.5,2109.1,19.34010463]
[1741529497971,0.94823,2109.6,2109.1,19.34010463]
[1741529498172,6.0377,2109.7,2109.1,19.34010463]
[1741529498375,0.94833,2109.4,2109.1,19.34010463]
[1741529498675,3.2078,2109.5,2109.1,19.34010463]
[1741529498869,3.2078,2109.5,2109.2,0.94837]
[1741529499066,11.0618,2109.9,2109.2,3.2078]
[1741529499380,12.0099,2109.9,2109.4,0.94828]
[1741529499675,0.94827,2109.5,2109.2,3.2078]
[1741529499873,4.15596,2109.8,2109.2,4.15616]
[1741529500074,3.2078,2109.8,2109.2,4.15617]
[1741529500275,0.94817,2109.7,2109.2,4.15617]
[1741529500491,3.2078,2109.8,2109.2,3.2078]
[1741529500677,0.94822,2109.6,2109.2,3.2078]
[1741529500874,0.94822,2109.6,2109.3,2.765]
[1741529501074,0.94822,2109.6,2109.4,40.8]
[1741529501373,0.94826,2109.5,2109.4,40.8]
[1741529501569,3.2078,2109.8,2109.2,3.2078]
[1741529501768,0.94828,2109.5,2109.2,3.2078]
[1741529501968,0.9483,2109.4,2109.2,3.2078]
[1741529502171,3.2078,2109.8,2109.2,3.2078]
[1741529502778,0.94829,2109.5,2109.2,3.2078]
[1741529503280,0.94832,2109.4,2109.2,3.2078]
[1741529503574,0.94817,2109.7,2109.2,3.2078]
[1741529503779,0.94823,2109.6,2109.2,4.15617]
[1741529503978,3.2078,2109.8,2109.2,3.2078]
[1741529504181,4.15595,2109.8,2109.4,0.94828]
[1741529504371,3.2078,2109.8,2109.4,2.765]
[1741529504683,3.2078,2109.8,2109.5,6.3007]
[1741529504978,0.94811,2109.9,2109.6,3.2078]
[1741529505177,6.0377,2110.1,2109.6,3.2078]
[1741529505381,0.94805,2110.0,2109.6,4.15601]
[1741529505677,8.1211,2110.2,2109.6,3.2078]
[1741529505882,7.3546,2110.3,2109.9,3.2078]
[1741529506077,0.94796,2110.2,2109.9,3.2078]
[1741529506277,10.56244,2110.3,2109.8,3.7131]
[1741529506780,0.94794,2110.2,2109.8,3.7131]
[1741529507176,0.94794,2110.2,2109.8,2.765]
[1741529507379,0.00710463,2110.4,2109.8,2.765]
[1741529507682,0.00710463,2110.4,2110.0,3.2078]
[1741529507883,0.94795,2110.2,2110.0,3.2078]
[1741529508085,0.94796,2110.2,2110.0,3.2078]
[1741529508278,0.00710463,2110.4,2110.0,3.2078]
[1741529508585,0.94794,2110.2,2110.0,3.2078]
[1741529508771,0.00710463,2110.4,2110.0,3.2078]
[1741529509272,0.00710463,2110.4,2110.3,4.1557]
[1741529509774,0.00710463,2110.4,2110.3,3.2078]
[1741529510174,3.2078,2110.9,2110.3,3.2078]
[1741529510383,3.2078,2110.9,2110.2,2.765]
[1741529510384,0.9478,2110.6,2110.2,2.765]
[1741529510683,0.94783,2110.5,2110.2,2.765]
[1741529510884,0.94783,2110.5,2110.3,40.8]
[1741529511077,3.2078,2110.9,2110.3,40.8]
[1741529511282,0.94785,2110.4,2110.3,40.8]
[1741529511677,0.94785,2110.4,2110.2,2.765]
[1741529512189,0.00710463,2110.8,2110.2,2.765]
[1741529512190,0.9479,2110.3,2110.2,2.765]
[1741529512480,0.94794,2110.2,2110.1,6.50130463]
[1741529513181,12.5262,2110.5,2110.1,6.50130463]
[1741529513686,0.94794,2110.2,2110.1,6.50130463]
[1741529514684,0.94794,2110.2,2110.1,0.00710463]
[1741529519879,3.2078,2110.3,2109.7,3.2078]
[1741529520391,0.94801,2110.1,2109.7,3.2078]
[1741529520588,0.94809,2109.9,2109.7,3.2078]
[1741529520792,0.94804,2110.0,2109.7,3.2078]
[1741529520988,3.2078,2110.3,2109.8,0.9481]
[1741529521194,3.2078,2110.3,2109.7,4.15595]
[1741529521399,3.2078,2110.3,2109.7,3.2078]
[1741529521588,0.94802,2110.1,2109.7,3.2078]
[1741529521892,3.2078,2110.3,2109.7,4.15596]
[1741529522092,0.948,2110.1,2109.7,3.2078]
[1741529522296,3.2078,2110.3,2109.7,3.2078]
[1741529522494,3.2078,2110.0,2109.6,0.00710463]
[1741529522686,0.94811,2109.9,2109.6,0.95527463]
[1741529522885,0.94817,2109.7,2109.6,0.00710463]
[1741529523603,4.15597,2109.7,2109.6,0.00710463]
[1741529526204,0.94817,2109.7,2109.6,0.00710463]
[1741529528106,0.94815,2109.8,2109.6,0.00710463]
[1741529528304,3.2078,2110.2,2109.6,0.00710463]
[1741529528506,0.94817,2109.7,2109.6,0.00710463]
[1741529528799,0.94814,2109.8,2109.6,0.00710463]
[1741529529002,0.94817,2109.7,2109.6,0.00710463]
[1741529529197,2.36998,2110.1,2109.6,0.00710463]
[1741529529198,3.2078,2110.2,2109.6,0.00710463]
[1741529529404,0.94815,2109.8,2109.6,0.00710463]
[1741529529697,3.2078,2110.2,2109.6,3.21490463]
[1741529529907,3.2078,2110.2,2109.6,4.16309463]
[1741529530102,0.94805,2110.0,2109.7,0.94815]
[1741529530615,3.2078,2110.2,2109.6,3.21490463]
[1741529530904,0.94809,2109.9,2109.6,4.16310463]
[1741529531108,0.94817,2109.7,2109.6,0.00710463]
[1741529531506,0.94813,2109.8,2109.6,0.00710463]
[1741529531704,3.2078,2110.2,2109.6,0.00710463]
[1741529532107,0.94805,2110.0,2109.7,0.94815]
[1741529532309,0.94801,2110.1,2109.6,0.00710463]
[1741529532609,0.94804,2110.0,2109.7,0.94813]
[1741529533011,3.2078,2110.2,2109.6,0.00710463]
[1741529533517,3.2078,2110.2,2109.8,0.94811]
[1741529533518,0.948,2110.1,2109.8,0.94811]